[Event "Titled Tuesday Blitz April 26 Late 2022"]
[White "Nakamura, Hikaru"]
[Black "Vasquez Schroeder, Rodrigo"]
[WhiteFideId "2016192"]
[BlackFideId "3400042"]
[WhiteElo "2850"]
[BlackElo "2561"]
[Result "1/2-1/2"]
[Round "06"]
[TimeControl "180+1"]
[Date "2022.04.26"]
[WhiteClock "0:00:20"]
[BlackClock "0:00:26"]

1. Nf3 {[%clk 0:03:00]}  c5 {[%clk 0:02:59]} 2. b3 {[%clk 0:03:00]}  Nf6 {[%clk 0:02:53]} 3. Bb2 {[%clk 0:03:00]}  e6 {[%clk 0:02:53]} 4. g3 {[%clk 0:02:58]}  b6 {[%clk 0:02:53]} 5. Bg2 {[%clk 0:02:58]}  Bb7 {[%clk 0:02:54]} 6. O-O {[%clk 0:02:58]}  Be7 {[%clk 0:02:54]} 7. d4 {[%clk 0:02:59]}  cxd4 {[%clk 0:02:53]} 8. Qxd4 {[%clk 0:03:00]}  d6 {[%clk 0:02:53]} 9. c4 {[%clk 0:02:59]}  a6 {[%clk 0:02:53]} 10. Nc3 {[%clk 0:02:58]}  Nbd7 {[%clk 0:02:54]} 11. Rfd1 {[%clk 0:02:56]}  O-O {[%clk 0:02:54]} 12. Ne1 {[%clk 0:02:55]}  Qc7 {[%clk 0:02:53]} 13. Bxb7 {[%clk 0:02:48]}  Qxb7 {[%clk 0:02:53]} 14. Ng2 {[%clk 0:02:48]}  b5 {[%clk 0:02:51]} 15. Rab1 {[%clk 0:02:40]}  Rfc8 {[%clk 0:02:48]} 16. Ne3 {[%clk 0:02:38]}  Rab8 {[%clk 0:02:47]} 17. Ba1 {[%clk 0:02:29]}  Ne5 {[%clk 0:02:46]} 18. f4 {[%clk 0:02:25]}  Nc6 {[%clk 0:02:36]} 19. Qd2 {[%clk 0:02:22]}  bxc4 {[%clk 0:02:31]} 20. bxc4 {[%clk 0:02:20]}  Qa7 {[%clk 0:02:30]} 21. Rxb8 {[%clk 0:02:20]}  Rxb8 {[%clk 0:02:26]} 22. Kg2 {[%clk 0:02:17]}  h6 {[%clk 0:02:17]} 23. Rf1 {[%clk 0:02:13]}  Rb4 {[%clk 0:02:12]} 24. Ncd1 {[%clk 0:02:10]}  Qb7 {[%clk 0:02:08]} 25. Kg1 {[%clk 0:02:08]}  Ne4 {[%clk 0:02:03]} 26. Qc2 {[%clk 0:02:07]}  Nc5 {[%clk 0:01:57]} 27. Nf2 {[%clk 0:02:04]}  Nd7 {[%clk 0:01:50]} 28. Bc3 {[%clk 0:01:59]}  Rb6 {[%clk 0:01:49]} 29. Rd1 {[%clk 0:01:56]}  Qc7 {[%clk 0:01:44]} 30. Qd2 {[%clk 0:01:45]}  Nc5 {[%clk 0:01:37]} 31. Qc2 {[%clk 0:01:43]}  Nb4 {[%clk 0:01:36]} 32. Qd2 {[%clk 0:01:40]}  Nc6 {[%clk 0:01:33]} 33. f5 {[%clk 0:01:37]}  Nd7 {[%clk 0:01:13]} 34. Nfg4 {[%clk 0:01:35]}  Rb8 {[%clk 0:01:04]} 35. f6 {[%clk 0:01:31]}  Nxf6 {[%clk 0:01:02]} 36. Nxf6+ {[%clk 0:01:28]}  Bxf6 {[%clk 0:01:01]} 37. Bxf6 {[%clk 0:01:28]}  gxf6 {[%clk 0:01:01]} 38. Ng4 {[%clk 0:01:22]}  f5 {[%clk 0:00:59]} 39. Nxh6+ {[%clk 0:01:18]}  Kf8 {[%clk 0:00:57]} 40. Qg5 {[%clk 0:01:13]}  Ne5 {[%clk 0:00:57]} 41. Qf6 {[%clk 0:01:09]}  Qd8 {[%clk 0:00:51]} 42. Qh8+ {[%clk 0:01:05]}  Ke7 {[%clk 0:00:51]} 43. Qg7 {[%clk 0:01:05]}  Qb6+ {[%clk 0:00:46]} 44. Kf1 {[%clk 0:00:51]}  Qe3 {[%clk 0:00:39]} 45. c5 {[%clk 0:00:40]}  Qxc5 {[%clk 0:00:27]} 46. Qg5+ {[%clk 0:00:32]}  Kd7 {[%clk 0:00:27]} 47. Qg7 {[%clk 0:00:20]}  Ke7 {[%clk 0:00:26]} 48. Qg5+ {[%clk 0:00:19]}  Kd7 {[%clk 0:00:26]} 49. Qg7 {[%clk 0:00:20]}  Ke7 {[%clk 0:00:26]} 1/2-1/2


[Site "https://www.chess.com"]

[Event "Titled Tuesday Blitz April 26 Late 2022"]
[White "Needleman, Alejandro"]
[Black "Janaszak, Dawid"]
[WhiteFideId "100730"]
[BlackFideId "1119206"]
[WhiteElo "2345"]
[BlackElo "2199"]
[Result "0-1"]
[Round "06"]
[TimeControl "180+1"]
[Date "2022.04.26"]
[WhiteClock "0:00:57"]
[BlackClock "0:00:20"]

1. e4 {[%clk 0:03:00]}  c5 {[%clk 0:02:56]} 2. Nf3 {[%clk 0:03:00]}  Nc6 {[%clk 0:02:56]} 3. d4 {[%clk 0:03:00]}  cxd4 {[%clk 0:02:57]} 4. Nxd4 {[%clk 0:03:00]}  g6 {[%clk 0:02:57]} 5. Nc3 {[%clk 0:03:00]}  Bg7 {[%clk 0:02:57]} 6. Nf3 {[%clk 0:03:00]}  Nf6 {[%clk 0:02:56]} 7. Bc4 {[%clk 0:03:01]}  O-O {[%clk 0:02:55]} 8. O-O {[%clk 0:03:00]}  d6 {[%clk 0:02:54]} 9. h3 {[%clk 0:03:01]}  b6 {[%clk 0:02:51]} 10. Re1 {[%clk 0:02:59]}  Bb7 {[%clk 0:02:51]} 11. Nd5 {[%clk 0:02:58]}  Rc8 {[%clk 0:02:45]} 12. Bb3 {[%clk 0:02:57]}  Na5 {[%clk 0:02:40]} 13. c3 {[%clk 0:02:57]}  Nxb3 {[%clk 0:02:40]} 14. axb3 {[%clk 0:02:57]}  a6 {[%clk 0:02:27]} 15. Bg5 {[%clk 0:02:56]}  Nxd5 {[%clk 0:02:19]} 16. exd5 {[%clk 0:02:57]}  Re8 {[%clk 0:02:18]} 17. Qd3 {[%clk 0:02:48]}  Qd7 {[%clk 0:02:15]} 18. Ra4 {[%clk 0:02:44]}  e5 {[%clk 0:02:02]} 19. dxe6 {[%clk 0:02:41]}  Rxe6 {[%clk 0:01:52]} 20. Rd1 {[%clk 0:02:35]}  Rce8 {[%clk 0:01:45]} 21. Bf4 {[%clk 0:02:24]}  b5 {[%clk 0:01:35]} 22. Raa1 {[%clk 0:02:19]}  Be4 {[%clk 0:01:30]} 23. Qe3 {[%clk 0:02:02]}  Bc2 {[%clk 0:01:19]} 24. Qd2 {[%clk 0:01:58]}  Bxd1 {[%clk 0:01:12]} 25. Rxd1 {[%clk 0:01:58]}  Re2 {[%clk 0:01:06]} 26. Qc1 {[%clk 0:01:58]}  Qe6 {[%clk 0:00:53]} 27. b4 {[%clk 0:01:52]}  Qb3 {[%clk 0:00:49]} 28. Rd2 {[%clk 0:01:45]}  d5 {[%clk 0:00:39]} 29. Be3 {[%clk 0:01:38]}  Rxd2 {[%clk 0:00:38]} 30. Qxd2 {[%clk 0:01:39]}  Qc4 {[%clk 0:00:37]} 31. Nd4 {[%clk 0:01:30]}  Bxd4 {[%clk 0:00:36]} 32. Bxd4 {[%clk 0:01:30]}  Re4 {[%clk 0:00:25]} 33. Bf6 {[%clk 0:01:07]}  Re6 {[%clk 0:00:23]} 34. Bd4 {[%clk 0:01:05]}  f6 {[%clk 0:00:23]} 35. Qf4 {[%clk 0:01:02]}  Qc6 {[%clk 0:00:20]} 36. h4 {[%clk 0:01:00]}  Qd6 {[%clk 0:00:20]} 37. Qf3 {[%clk 0:00:57]}  Re1# {[%clk 0:00:20]} 0-1


[Site "https://www.chess.com"]

[Event "Titled Tuesday Blitz April 26 Late 2022"]
[White "Petrovic, Aleksa"]
[Black "Aroesti, Roee"]
[WhiteFideId "967629"]
[BlackFideId "2817144"]
[WhiteElo "2198"]
[BlackElo "2068"]
[Result "1/2-1/2"]
[Round "06"]
[TimeControl "180+1"]
[Date "2022.04.26"]
[WhiteClock "0:00:13"]
[BlackClock "0:00:04"]

1. d4 {[%clk 0:03:00]}  Nf6 {[%clk 0:02:58]} 2. c4 {[%clk 0:03:01]}  b6 {[%clk 0:02:58]} 3. Nf3 {[%clk 0:02:54]}  Bb7 {[%clk 0:02:48]} 4. g3 {[%clk 0:02:54]}  g6 {[%clk 0:02:43]} 5. Bg2 {[%clk 0:02:53]}  Bg7 {[%clk 0:02:43]} 6. O-O {[%clk 0:02:53]}  O-O {[%clk 0:02:42]} 7. Nc3 {[%clk 0:02:52]}  Ne4 {[%clk 0:02:40]} 8. Qd3 {[%clk 0:02:43]}  Nxc3 {[%clk 0:02:39]} 9. Qxc3 {[%clk 0:02:44]}  c5 {[%clk 0:02:37]} 10. Rd1 {[%clk 0:02:33]}  cxd4 {[%clk 0:02:05]} 11. Nxd4 {[%clk 0:02:20]}  Bxg2 {[%clk 0:02:06]} 12. Kxg2 {[%clk 0:02:20]}  Qc8 {[%clk 0:01:54]} 13. Qf3 {[%clk 0:02:08]}  Nc6 {[%clk 0:01:45]} 14. Nxc6 {[%clk 0:02:07]}  Qxc6 {[%clk 0:01:46]} 15. Bg5 {[%clk 0:01:38]}  Bxb2 {[%clk 0:01:26]} 16. Rab1 {[%clk 0:01:30]}  Bg7 {[%clk 0:01:04]} 17. Bxe7 {[%clk 0:01:25]}  Rfe8 {[%clk 0:01:03]} 18. Bg5 {[%clk 0:01:17]}  Rxe2 {[%clk 0:00:56]} 19. Rxd7 {[%clk 0:00:57]}  Qxf3+ {[%clk 0:00:53]} 20. Kxf3 {[%clk 0:00:58]}  Rxa2 {[%clk 0:00:53]} 21. Rbd1 {[%clk 0:00:42]}  h6 {[%clk 0:00:48]} 22. Be3 {[%clk 0:00:38]}  Rc2 {[%clk 0:00:37]} 23. Rd8+ {[%clk 0:00:31]}  Rxd8 {[%clk 0:00:35]} 24. Rxd8+ {[%clk 0:00:32]}  Kh7 {[%clk 0:00:34]} 25. Rd7 {[%clk 0:00:33]}  Rxc4 {[%clk 0:00:19]} 26. Rxa7 {[%clk 0:00:32]}  Kg8 {[%clk 0:00:13]} 27. Bxb6 {[%clk 0:00:30]}  Rc3+ {[%clk 0:00:13]} 28. Be3 {[%clk 0:00:30]}  Bd4 {[%clk 0:00:12]} 29. Re7 {[%clk 0:00:29]}  Bxe3 {[%clk 0:00:12]} 30. Rxe3 {[%clk 0:00:29]}  Rxe3+ {[%clk 0:00:11]} 31. Kxe3 {[%clk 0:00:29]}  Kg7 {[%clk 0:00:11]} 32. Ke4 {[%clk 0:00:28]}  Kf6 {[%clk 0:00:12]} 33. f4 {[%clk 0:00:28]}  Ke6 {[%clk 0:00:12]} 34. h3 {[%clk 0:00:25]}  Kd6 {[%clk 0:00:08]} 35. f5 {[%clk 0:00:19]}  g5 {[%clk 0:00:04]} 36. Kd4 {[%clk 0:00:12]}  f6 {[%clk 0:00:04]} 37. g4 {[%clk 0:00:11]}  Kc6 {[%clk 0:00:03]} 38. Kc4 {[%clk 0:00:11]}  Kd6 {[%clk 0:00:03]} 39. Kd4 {[%clk 0:00:12]}  Kc6 {[%clk 0:00:04]} 40. Kc4 {[%clk 0:00:12]}  Kd6 {[%clk 0:00:04]} 41. Kd4 {[%clk 0:00:13]} 1/2-1/2


[Site "https://www.chess.com"]

[Event "Titled Tuesday Blitz April 26 Late 2022"]
[White "Pinheiro, Iung Alicio de O."]
[Black "Tatarinov, Dmitry"]
[WhiteFideId "2104350"]
[BlackFideId "24160067"]
[WhiteElo "2471"]
[BlackElo "2302"]
[Result "1-0"]
[Round "06"]
[TimeControl "180+1"]
[Date "2022.04.26"]
[WhiteClock "0:00:27"]
[BlackClock "0:01:18"]

1. c4 {[%clk 0:03:00]}  e5 {[%clk 0:03:00]} 2. g3 {[%clk 0:02:59]}  h5 {[%clk 0:03:00]} 3. Nc3 {[%clk 0:02:58]}  h4 {[%clk 0:03:00]} 4. g4 {[%clk 0:02:58]}  Bc5 {[%clk 0:02:57]} 5. h3 {[%clk 0:02:56]}  d6 {[%clk 0:02:57]} 6. Qc2 {[%clk 0:02:51]}  Nc6 {[%clk 0:02:57]} 7. e3 {[%clk 0:02:50]}  Nge7 {[%clk 0:02:54]} 8. Bg2 {[%clk 0:02:49]}  f5 {[%clk 0:02:54]} 9. gxf5 {[%clk 0:02:40]}  Bxf5 {[%clk 0:02:55]} 10. Be4 {[%clk 0:02:40]}  Be6 {[%clk 0:02:52]} 11. Nd5 {[%clk 0:02:26]}  Qd7 {[%clk 0:02:51]} 12. a3 {[%clk 0:02:24]}  a6 {[%clk 0:02:48]} 13. b4 {[%clk 0:02:24]}  Ba7 {[%clk 0:02:48]} 14. Bb2 {[%clk 0:02:24]}  O-O {[%clk 0:02:46]} 15. Nf3 {[%clk 0:01:52]}  b5 {[%clk 0:02:14]} 16. Ng5 {[%clk 0:01:20]}  Bf5 {[%clk 0:02:08]} 17. Bxf5 {[%clk 0:01:12]}  Rxf5 {[%clk 0:02:04]} 18. Rg1 {[%clk 0:01:03]}  Nxd5 {[%clk 0:02:03]} 19. cxd5 {[%clk 0:01:02]}  Ne7 {[%clk 0:02:00]} 20. Ne6 {[%clk 0:01:01]}  g6 {[%clk 0:01:56]} 21. Rxg6+ {[%clk 0:00:49]}  Nxg6 {[%clk 0:01:50]} 22. Qxf5 {[%clk 0:00:48]}  Qf7 {[%clk 0:01:51]} 23. Qg4 {[%clk 0:00:39]}  c6 {[%clk 0:01:48]} 24. f4 {[%clk 0:00:35]}  exf4 {[%clk 0:01:42]} 25. Nxf4 {[%clk 0:00:32]}  Rf8 {[%clk 0:01:24]} 26. O-O-O {[%clk 0:00:27]}  Qf5 {[%clk 0:01:18]} 27. Qxg6+ {[%clk 0:00:26]}  Qxg6 {[%clk 0:01:18]} 28. Nxg6 {[%clk 0:00:27]}  Rc8 {[%clk 0:01:18]} 29. Ne7+ {[%clk 0:00:27]} 1-0


[Site "https://www.chess.com"]

[Event "Titled Tuesday Blitz April 26 Late 2022"]
[White "Proudian, Armen"]
[Black "Prohorov, Olexandr"]
[WhiteFideId "2130734"]
[BlackFideId "14105578"]
[WhiteElo "2380"]
[BlackElo "1993"]
[Result "0-1"]
[Round "06"]
[TimeControl "180+1"]
[Date "2022.04.26"]
[WhiteClock "0:00:40"]
[BlackClock "0:00:14"]

1. e4 {[%clk 0:03:00]}  c5 {[%clk 0:02:57]} 2. Nf3 {[%clk 0:03:00]}  e6 {[%clk 0:02:57]} 3. d4 {[%clk 0:03:00]}  cxd4 {[%clk 0:02:58]} 4. Nxd4 {[%clk 0:03:01]}  Qb6 {[%clk 0:02:58]} 5. Nb3 {[%clk 0:03:01]}  Nf6 {[%clk 0:02:50]} 6. Nc3 {[%clk 0:02:59]}  Bb4 {[%clk 0:02:49]} 7. Be3 {[%clk 0:02:56]}  Qc7 {[%clk 0:02:49]} 8. Bd3 {[%clk 0:02:41]}  d5 {[%clk 0:02:48]} 9. exd5 {[%clk 0:02:35]}  Nxd5 {[%clk 0:02:48]} 10. Bd2 {[%clk 0:02:35]}  Nxc3 {[%clk 0:02:48]} 11. bxc3 {[%clk 0:02:35]}  Be7 {[%clk 0:02:48]} 12. O-O {[%clk 0:02:33]}  O-O {[%clk 0:02:47]} 13. Nd4 {[%clk 0:02:27]}  Nd7 {[%clk 0:02:43]} 14. Re1 {[%clk 0:02:19]}  Nc5 {[%clk 0:02:34]} 15. Re3 {[%clk 0:02:08]}  g6 {[%clk 0:02:28]} 16. Qf3 {[%clk 0:01:58]}  Bd7 {[%clk 0:02:25]} 17. Rb1 {[%clk 0:01:56]}  a6 {[%clk 0:02:17]} 18. Re2 {[%clk 0:01:30]}  Rac8 {[%clk 0:02:11]} 19. Bh6 {[%clk 0:01:30]}  Rfe8 {[%clk 0:02:09]} 20. Qe3 {[%clk 0:01:19]}  b5 {[%clk 0:02:06]} 21. Nf3 {[%clk 0:01:19]}  Na4 {[%clk 0:01:59]} 22. Ne5 {[%clk 0:00:59]}  Nxc3 {[%clk 0:01:56]} 23. Rbe1 {[%clk 0:01:00]}  Nxe2+ {[%clk 0:01:54]} 24. Rxe2 {[%clk 0:01:00]}  f6 {[%clk 0:01:48]} 25. Nxg6 {[%clk 0:00:59]}  hxg6 {[%clk 0:01:46]} 26. Bxg6 {[%clk 0:01:00]}  Red8 {[%clk 0:01:23]} 27. Qh3 {[%clk 0:00:48]}  Bf8 {[%clk 0:01:09]} 28. Bf4 {[%clk 0:00:34]}  Be8 {[%clk 0:00:44]} 29. Qxe6+ {[%clk 0:00:35]}  Bf7 {[%clk 0:00:41]} 30. Bxc7 {[%clk 0:00:31]}  Bxe6 {[%clk 0:00:33]} 31. Bxd8 {[%clk 0:00:30]}  Rxd8 {[%clk 0:00:32]} 32. Bd3 {[%clk 0:00:29]}  Bxa2 {[%clk 0:00:28]} 33. h4 {[%clk 0:00:28]}  Bc5 {[%clk 0:00:25]} 34. Re4 {[%clk 0:00:28]}  Kf7 {[%clk 0:00:20]} 35. g4 {[%clk 0:00:27]}  Re8 {[%clk 0:00:18]} 36. Rf4 {[%clk 0:00:27]}  Kg7 {[%clk 0:00:17]} 37. Kg2 {[%clk 0:00:27]}  Bd5+ {[%clk 0:00:15]} 38. f3 {[%clk 0:00:27]}  Re1 {[%clk 0:00:09]} 39. Rf5 {[%clk 0:00:27]}  Re5 {[%clk 0:00:05]} 40. Rf4 {[%clk 0:00:28]}  Bd6 {[%clk 0:00:04]} 41. Rb4 {[%clk 0:00:28]}  Bxb4 {[%clk 0:00:04]} 42. Kg3 {[%clk 0:00:25]}  Bc4 {[%clk 0:00:05]} 43. f4 {[%clk 0:00:25]}  Bxd3 {[%clk 0:00:05]} 44. fxe5 {[%clk 0:00:26]}  Bxc2 {[%clk 0:00:05]} 45. e6 {[%clk 0:00:25]}  Kf8 {[%clk 0:00:05]} 46. g5 {[%clk 0:00:25]}  Ke7 {[%clk 0:00:06]} 47. Kg4 {[%clk 0:00:24]}  fxg5 {[%clk 0:00:06]} 48. h5 {[%clk 0:00:25]}  Kxe6 {[%clk 0:00:06]} 49. Kxg5 {[%clk 0:00:25]}  Kd5 {[%clk 0:00:06]} 50. Kh6 {[%clk 0:00:26]}  Kc4 {[%clk 0:00:07]} 51. Kg5 {[%clk 0:00:26]}  a5 {[%clk 0:00:07]} 52. Kh6 {[%clk 0:00:27]}  a4 {[%clk 0:00:07]} 53. Kg7 {[%clk 0:00:28]}  a3 {[%clk 0:00:07]} 54. h6 {[%clk 0:00:29]}  Bb1 {[%clk 0:00:07]} 55. Kg8 {[%clk 0:00:30]}  Bh7+ {[%clk 0:00:08]} 56. Kxh7 {[%clk 0:00:30]}  a2 {[%clk 0:00:08]} 57. Kh8 {[%clk 0:00:31]}  a1=Q+ {[%clk 0:00:09]} 58. Kg8 {[%clk 0:00:32]}  Qa8+ {[%clk 0:00:09]} 59. Kh7 {[%clk 0:00:32]}  Qb7+ {[%clk 0:00:09]} 60. Kg8 {[%clk 0:00:33]}  Qc8+ {[%clk 0:00:10]} 61. Kh7 {[%clk 0:00:33]}  Qd7+ {[%clk 0:00:10]} 62. Kg6 {[%clk 0:00:34]}  Qe8+ {[%clk 0:00:10]} 63. Kg7 {[%clk 0:00:35]}  Qe7+ {[%clk 0:00:10]} 64. Kg6 {[%clk 0:00:36]}  Qf8 {[%clk 0:00:10]} 65. Kh7 {[%clk 0:00:36]}  Bc3 {[%clk 0:00:09]} 66. Kg6 {[%clk 0:00:36]}  Qg8+ {[%clk 0:00:09]} 67. Kh5 {[%clk 0:00:36]}  Qh7 {[%clk 0:00:09]} 68. Kg5 {[%clk 0:00:36]}  Bg7 {[%clk 0:00:10]} 69. hxg7 {[%clk 0:00:36]}  Qxg7+ {[%clk 0:00:10]} 70. Kf5 {[%clk 0:00:37]}  Qe7 {[%clk 0:00:10]} 71. Kf4 {[%clk 0:00:36]}  Kd5 {[%clk 0:00:11]} 72. Kf3 {[%clk 0:00:37]}  Qe4+ {[%clk 0:00:11]} 73. Kg3 {[%clk 0:00:37]}  Kd4 {[%clk 0:00:12]} 74. Kf2 {[%clk 0:00:38]}  Qe3+ {[%clk 0:00:12]} 75. Kg2 {[%clk 0:00:38]}  Ke4 {[%clk 0:00:12]} 76. Kf1 {[%clk 0:00:39]}  Kf4 {[%clk 0:00:12]} 77. Kg2 {[%clk 0:00:39]}  Qe2+ {[%clk 0:00:12]} 78. Kh1 {[%clk 0:00:39]}  Kg3 {[%clk 0:00:13]} 79. Kg1 {[%clk 0:00:40]}  Qf2+ {[%clk 0:00:13]} 80. Kh1 {[%clk 0:00:40]}  Qg2# {[%clk 0:00:14]} 0-1


[Site "https://www.chess.com"]

[Event "Titled Tuesday Blitz April 26 Late 2022"]
[White "Qiao, Cindy"]
[Black "Papp, Petra"]
[WhiteFideId "2620243"]
[BlackFideId "739049"]
[WhiteElo "2243"]
[BlackElo "2259"]
[Result "0-1"]
[Round "06"]
[TimeControl "180+1"]
[Date "2022.04.26"]
[WhiteClock "0:00:04"]
[BlackClock "0:00:51"]

1. d4 {[%clk 0:03:00]}  d5 {[%clk 0:02:58]} 2. Bf4 {[%clk 0:03:01]}  c5 {[%clk 0:02:57]} 3. e3 {[%clk 0:03:01]}  Nc6 {[%clk 0:02:58]} 4. c3 {[%clk 0:03:01]}  Qb6 {[%clk 0:02:57]} 5. Qb3 {[%clk 0:02:59]}  c4 {[%clk 0:02:55]} 6. Qc2 {[%clk 0:02:59]}  e5 {[%clk 0:02:55]} 7. dxe5 {[%clk 0:02:53]}  Bf5 {[%clk 0:02:52]} 8. Qc1 {[%clk 0:02:52]}  f6 {[%clk 0:02:52]} 9. Nf3 {[%clk 0:02:50]}  g5 {[%clk 0:02:51]} 10. Bg3 {[%clk 0:02:46]}  Bg7 {[%clk 0:02:40]} 11. exf6 {[%clk 0:02:30]}  Bxf6 {[%clk 0:02:37]} 12. Nbd2 {[%clk 0:02:17]}  h5 {[%clk 0:02:30]} 13. h3 {[%clk 0:02:11]}  Nge7 {[%clk 0:02:27]} 14. Be2 {[%clk 0:02:08]}  O-O-O {[%clk 0:02:25]} 15. Nd4 {[%clk 0:01:57]}  Bd7 {[%clk 0:02:20]} 16. b3 {[%clk 0:01:54]}  cxb3 {[%clk 0:02:18]} 17. axb3 {[%clk 0:01:53]}  Be5 {[%clk 0:02:18]} 18. Bxe5 {[%clk 0:01:42]}  Nxe5 {[%clk 0:02:17]} 19. c4 {[%clk 0:01:16]}  Kb8 {[%clk 0:02:05]} 20. Qa3 {[%clk 0:01:15]}  Nc8 {[%clk 0:02:02]} 21. c5 {[%clk 0:01:04]}  Qf6 {[%clk 0:01:56]} 22. b4 {[%clk 0:00:59]}  g4 {[%clk 0:01:50]} 23. h4 {[%clk 0:00:49]}  Rhf8 {[%clk 0:01:47]} 24. Rf1 {[%clk 0:00:39]}  Qxh4 {[%clk 0:01:42]} 25. b5 {[%clk 0:00:39]}  Rxf2 {[%clk 0:01:30]} 26. Rxf2 {[%clk 0:00:32]}  Rf8 {[%clk 0:01:30]} 27. N2f3 {[%clk 0:00:20]}  gxf3 {[%clk 0:01:18]} 28. Bxf3 {[%clk 0:00:16]}  Nc4 {[%clk 0:01:06]} 29. Qb3 {[%clk 0:00:11]}  Re8 {[%clk 0:01:02]} 30. Nc2 {[%clk 0:00:09]}  Bf5 {[%clk 0:01:00]} 31. Qc3 {[%clk 0:00:05]}  Bxc2 {[%clk 0:00:58]} 32. Qxc2 {[%clk 0:00:06]}  Nxe3 {[%clk 0:00:56]} 33. Qd3 {[%clk 0:00:04]}  Ng4+ {[%clk 0:00:52]} 34. Kd1 {[%clk 0:00:04]}  Nxf2+ {[%clk 0:00:51]} 0-1


[Site "https://www.chess.com"]

[Event "Titled Tuesday Blitz April 26 Late 2022"]
[White "Rosen, Eric"]
[Black "Meduri, Aakaash"]
[WhiteFideId "2032562"]
[BlackFideId "2032252"]
[WhiteElo "2362"]
[BlackElo "2096"]
[Result "1-0"]
[Round "06"]
[TimeControl "180+1"]
[Date "2022.04.26"]
[WhiteClock "0:00:07"]
[BlackClock "0:00:03"]

1. d4 {[%clk 0:02:52]}  d5 {[%clk 0:02:59]} 2. Bf4 {[%clk 0:02:48]}  Nf6 {[%clk 0:02:58]} 3. Nc3 {[%clk 0:02:48]}  a6 {[%clk 0:02:57]} 4. e3 {[%clk 0:02:42]}  c5 {[%clk 0:02:53]} 5. Nf3 {[%clk 0:02:28]}  e6 {[%clk 0:02:51]} 6. Ne5 {[%clk 0:02:25]}  cxd4 {[%clk 0:02:45]} 7. exd4 {[%clk 0:02:24]}  Nc6 {[%clk 0:02:46]} 8. Nxc6 {[%clk 0:02:11]}  bxc6 {[%clk 0:02:46]} 9. Na4 {[%clk 0:02:11]}  Bd6 {[%clk 0:02:29]} 10. Bxd6 {[%clk 0:02:10]}  Qxd6 {[%clk 0:02:30]} 11. Be2 {[%clk 0:02:01]}  O-O {[%clk 0:02:28]} 12. O-O {[%clk 0:02:01]}  e5 {[%clk 0:02:27]} 13. dxe5 {[%clk 0:02:00]}  Qxe5 {[%clk 0:02:28]} 14. c3 {[%clk 0:02:00]}  Bf5 {[%clk 0:02:26]} 15. Nc5 {[%clk 0:01:59]}  a5 {[%clk 0:02:25]} 16. Re1 {[%clk 0:01:51]}  Qd6 {[%clk 0:02:04]} 17. Qd4 {[%clk 0:01:50]}  Rab8 {[%clk 0:01:57]} 18. b3 {[%clk 0:01:50]}  Rfe8 {[%clk 0:01:54]} 19. g3 {[%clk 0:01:43]}  Ne4 {[%clk 0:01:43]} 20. Nxe4 {[%clk 0:01:28]}  Rxe4 {[%clk 0:01:43]} 21. Qd2 {[%clk 0:01:28]}  Rbe8 {[%clk 0:01:34]} 22. Bf3 {[%clk 0:01:29]}  R4e7 {[%clk 0:01:35]} 23. Rxe7 {[%clk 0:01:16]}  Qxe7 {[%clk 0:01:34]} 24. h4 {[%clk 0:01:11]}  h6 {[%clk 0:01:31]} 25. Rc1 {[%clk 0:01:05]}  Qa3 {[%clk 0:01:29]} 26. c4 {[%clk 0:00:59]}  Rd8 {[%clk 0:01:04]} 27. cxd5 {[%clk 0:00:59]}  cxd5 {[%clk 0:01:05]} 28. Re1 {[%clk 0:00:20]}  d4 {[%clk 0:01:01]} 29. Re5 {[%clk 0:00:20]}  Be6 {[%clk 0:01:00]} 30. Rxa5 {[%clk 0:00:16]}  Qd6 {[%clk 0:00:51]} 31. Ra8 {[%clk 0:00:15]}  Rxa8 {[%clk 0:00:33]} 32. Bxa8 {[%clk 0:00:16]}  Bf5 {[%clk 0:00:32]} 33. Bf3 {[%clk 0:00:15]}  d3 {[%clk 0:00:31]} 34. b4 {[%clk 0:00:14]}  Bd7 {[%clk 0:00:22]} 35. a3 {[%clk 0:00:14]}  Bb5 {[%clk 0:00:22]} 36. Bd1 {[%clk 0:00:12]}  Qd4 {[%clk 0:00:21]} 37. a4 {[%clk 0:00:12]}  Bc4 {[%clk 0:00:21]} 38. b5 {[%clk 0:00:11]}  Qa1 {[%clk 0:00:21]} 39. b6 {[%clk 0:00:09]}  Qb1 {[%clk 0:00:19]} 40. a5 {[%clk 0:00:10]}  Bb3 {[%clk 0:00:18]} 41. b7 {[%clk 0:00:01]}  Bxd1 {[%clk 0:00:16]} 42. b8=Q+ {[%clk 0:00:01]}  Qxb8 {[%clk 0:00:17]} 43. Qxd1 {[%clk 0:00:02]}  Qb5 {[%clk 0:00:16]} 44. Qd2 {[%clk 0:00:02]}  f5 {[%clk 0:00:12]} 45. Kg2 {[%clk 0:00:02]}  Kf7 {[%clk 0:00:13]} 46. Kf3 {[%clk 0:00:03]}  Ke6 {[%clk 0:00:13]} 47. Ke3 {[%clk 0:00:03]}  Ke5 {[%clk 0:00:07]} 48. Qc3+ {[%clk 0:00:02]}  Ke6 {[%clk 0:00:06]} 49. Kd2 {[%clk 0:00:03]}  g5 {[%clk 0:00:04]} 50. hxg5 {[%clk 0:00:03]}  hxg5 {[%clk 0:00:05]} 51. f4 {[%clk 0:00:03]}  gxf4 {[%clk 0:00:06]} 52. gxf4 {[%clk 0:00:04]}  Qa6 {[%clk 0:00:06]} 53. Qe5+ {[%clk 0:00:04]}  Kd7 {[%clk 0:00:05]} 54. Qxf5+ {[%clk 0:00:04]}  Ke7 {[%clk 0:00:06]} 55. Qe5+ {[%clk 0:00:04]}  Kf7 {[%clk 0:00:06]} 56. Qc7+ {[%clk 0:00:04]}  Kf8 {[%clk 0:00:05]} 57. Qc5+ {[%clk 0:00:04]}  Kf7 {[%clk 0:00:04]} 58. Qd5+ {[%clk 0:00:04]}  Kf8 {[%clk 0:00:04]} 59. Qf5+ {[%clk 0:00:04]}  Kg8 {[%clk 0:00:03]} 60. Qg5+ {[%clk 0:00:04]}  Kf8 {[%clk 0:00:03]} 61. Qd8+ {[%clk 0:00:04]}  Kf7 {[%clk 0:00:03]} 62. Qc7+ {[%clk 0:00:05]}  Kf8 {[%clk 0:00:03]} 63. Qc5+ {[%clk 0:00:05]}  Kf7 {[%clk 0:00:03]} 64. f5 {[%clk 0:00:05]}  Kf6 {[%clk 0:00:02]} 65. Qb6+ {[%clk 0:00:05]}  Qxb6 {[%clk 0:00:02]} 66. axb6 {[%clk 0:00:06]}  Kxf5 {[%clk 0:00:03]} 67. b7 {[%clk 0:00:07]} 1-0


[Site "https://www.chess.com"]